fUSD/lending_fUSD_20251027
["ID","MTS","AMOUNT","RATE_DAILY","PERIOD"]
[392488346,1761557459963,-173.36757617,0.00043835,120]
[392488347,1761557459974,-836.5,0.00043835,120]
[392488348,1761557459984,-500.0,0.00043835,2]
[392488349,1761557459993,-836.5,0.00043835,120]
[392488350,1761557460003,-500.0,0.00043835,2]
[392488351,1761557460012,-836.5,0.00043835,120]
[392488352,1761557460024,-500.0,0.00043835,2]
[392488353,1761557460034,-836.5,0.00043835,120]
[392488354,1761557460044,-500.0,0.00043835,2]
[392488355,1761557460054,-836.5,0.00043835,120]
[392488356,1761557460064,-500.0,0.00043835,2]
[392488357,1761557460073,-836.5,0.00043835,120]
[392488358,1761557460083,-500.0,0.00043835,2]
[392488359,1761557460092,-836.5,0.00043835,120]
[392488360,1761557460102,-500.0,0.00043835,2]
[392488361,1761557460111,-836.5,0.00043835,120]
[392488362,1761557460121,-500.0,0.00043835,2]
[392488363,1761557460130,-524.0,0.00043835,120]
[392488364,1761557460139,-836.5,0.00043835,120]
[392488365,1761557460148,-524.0,0.00043835,120]
[392488366,1761557460158,-836.5,0.00043835,120]
[392488367,1761557460167,-524.0,0.00043835,120]
[392488368,1761557460176,-836.5,0.00043835,120]
[392488369,1761557460186,-524.0,0.00043835,120]
[392488370,1761557460195,-836.5,0.00043835,120]
[392488371,1761557460204,-524.0,0.00043835,120]
[392488372,1761557460213,-836.5,0.00043835,120]
[392488373,1761557460222,-836.5,0.00043835,120]
[392488374,1761557460231,-524.0,0.00043835,120]
[392488375,1761557460241,-836.5,0.00043835,120]
[392488376,1761557460251,-524.0,0.00043835,120]
[392488377,1761557460260,-524.0,0.00043835,120]
[392488378,1761557460268,-836.5,0.00043835,120]
[392488379,1761557460278,-500.0,0.00043835,120]
[392488380,1761557460287,-524.0,0.00043835,120]
[392488381,1761557460295,-500.0,0.00043835,120]
[392488382,1761557460304,-836.5,0.00043835,120]
[392488383,1761557460313,-524.0,0.00043835,120]
[392488384,1761557460322,-364.49337452,0.00043835,120]
[392488385,1761557460331,-836.5,0.00043835,120]
[392488386,1761557460340,-524.0,0.00043835,120]
[392488387,1761557460349,-836.5,0.00043835,120]
[392488388,1761557460358,-524.0,0.00043835,120]
[392488389,1761557460366,-836.68788407,0.00043835,120]
[392488390,1761557460375,-524.0,0.00043835,120]
[392488391,1761557460385,-524.0,0.00043835,120]
[392488392,1761557460394,-524.0,0.00043835,120]
[392488393,1761557460403,-539.72716901,0.00043835,120]
[392488394,1761557460412,-524.0,0.00043835,120]
[392488395,1761557460421,-524.0,0.00043835,120]
[392488396,1761557460431,-524.0,0.00043835,120]
[392488397,1761557460440,-524.0,0.00043835,120]
[392488398,1761557460449,-524.0,0.00043835,120]
[392488399,1761557460459,-524.0,0.00043835,120]
[392488400,1761557460468,-218.79220397,0.00043835,120]
[392488401,1761557460477,-524.0,0.00043835,120]
[392488402,1761557460487,-524.0,0.00043835,120]
[392488403,1761557460496,-524.07311735,0.00043835,120]
[392488404,1761557460506,-500.0,0.00043835,120]
[392488405,1761557460515,-500.0,0.00043835,120]
[392488406,1761557460523,-500.0,0.00043835,120]
[392488407,1761557460533,-500.0,0.00043835,120]
[392488408,1761557460542,-554.65502097,0.00043835,120]
[392488409,1761557460551,-500.0,0.00043835,120]
[392488410,1761557460561,-500.0,0.00043835,120]
[392488411,1761557460570,-500.0,0.00043835,120]
[392488412,1761557460579,-500.0,0.00043835,120]
[392488413,1761557460588,-500.0,0.00043835,120]
[392488414,1761557460597,-379.88310164,0.00043835,120]
[392488415,1761557460606,-509.88177784,0.00043835,120]
[392488416,1761557460616,-582.91,0.00043835,120]
[392488417,1761557460625,-582.91,0.00043835,120]
[392488418,1761557460634,-582.91,0.00043835,120]
[392488419,1761557460642,-500.0,0.00043835,120]
[392488420,1761557460652,-582.91,0.00043835,120]
[392488421,1761557460661,-582.91,0.00043835,120]
[392488422,1761557460670,-582.91,0.00043835,120]
[392488423,1761557460679,-582.91,0.00043835,120]
[392488424,1761557460688,-582.91,0.00043835,120]
[392488425,1761557460697,-582.91,0.00043835,120]
[392488426,1761557460708,-582.91,0.00043835,120]
[392488427,1761557460718,-582.91,0.00043835,120]
[392488428,1761557460727,-582.91,0.00043835,120]
[392488429,1761557460736,-538.59,0.00043835,120]
[392488430,1761557460745,-582.91,0.00043835,120]
[392488431,1761557460755,-538.59,0.00043835,120]
[392488432,1761557460765,-538.59,0.00043835,120]
[392488433,1761557460774,-582.91,0.00043835,120]
[392488434,1761557460783,-500.0,0.00043835,120]
[392488435,1761557460792,-538.59,0.00043835,120]
[392488436,1761557460801,-187.06870605,0.00043835,120]
[392488437,1761557460810,-538.59,0.00043835,120]
[392488438,1761557460819,-500.0,0.00043835,120]
[392488439,1761557460829,-538.59,0.00043835,120]
[392488440,1761557460838,-547.3722114,0.00043835,120]
[392488441,1761557460847,-538.59,0.00043835,120]
[392488442,1761557460857,-538.59,0.00043835,120]
[392488443,1761557460866,-297.71730031,0.00043835,120]
[392488444,1761557460875,-500.0,0.00043835,120]
[392488445,1761557460884,-500.0,0.00043835,120]
[392488446,1761557460894,-500.0,0.00043835,120]
[392488447,1761557460903,-500.0,0.00043835,120]
[392488448,1761557460912,-500.0,0.00043835,120]
[392488449,1761557460921,-500.0,0.00043835,120]
[392488450,1761557460930,-500.0,0.00043835,120]
[392488451,1761557460939,-500.0,0.00043835,120]
[392488452,1761557460949,-500.0,0.00043835,120]
[392488453,1761557460958,-500.0,0.00043835,120]
[392488454,1761557460967,-500.0,0.00043835,120]
[392488455,1761557460976,-523.26868056,0.00043835,120]
[392488456,1761557460986,-500.0,0.00043835,120]
[392488457,1761557460995,-500.0,0.00043835,120]
[392488458,1761557461006,-500.0,0.00043835,120]
[392488459,1761557461015,-500.0,0.00043835,120]
[392488460,1761557461028,-500.0,0.00043835,120]
[392488461,1761557461038,-500.0,0.00043835,120]
[392488462,1761557461047,-500.0,0.00043835,120]
[392488463,1761557461056,-359.06550982,0.00043835,120]
[392488464,1761557461066,-500.0,0.00043835,120]
[392488465,1761557461075,-364.15158492,0.00043835,120]
[392488466,1761557461084,-500.0,0.00043835,120]
[392488467,1761557461093,-500.0,0.00043835,120]
[392488468,1761557461102,-500.0,0.00043835,120]
[392488469,1761557461111,-500.0,0.00043835,120]
[392488470,1761557461120,-500.0,0.00043835,120]
[392488471,1761557461129,-500.0,0.00043835,120]
[392488472,1761557461139,-569.54009071,0.00043835,120]
[392488473,1761557461148,-483.32459463,0.00043835,120]
[392488474,1761557461157,-500.0,0.00043835,120]
[392488475,1761557461167,-500.0,0.00043835,120]
[392488476,1761557461176,-500.0,0.00043835,120]
[392488477,1761557461185,-500.0,0.00043835,120]
[392488478,1761557461194,-500.0,0.00043835,120]
[392488479,1761557461204,-500.0,0.00043835,120]
[392488480,1761557461214,-547.92,0.00043835,120]
[392488481,1761557461224,-500.0,0.00043835,120]
[392488482,1761557461234,-500.0,0.00043835,120]
[392488483,1761557461244,-500.0,0.00043835,120]
[392488484,1761557461254,-500.0,0.00043835,120]
[392488485,1761557461263,-500.0,0.00043835,120]
[392488486,1761557461272,-500.0,0.00043835,120]
[392488487,1761557461283,-358.56232962,0.00043835,120]
[392488488,1761557461293,-500.0,0.00043835,120]
[392488489,1761557461301,-500.0,0.00043835,120]
[392488490,1761557461310,-430.55365823,0.00043835,120]
[392488491,1761557461318,-500.0,0.00043835,120]
[392488492,1761557461326,-500.0,0.00043835,120]
[392488493,1761557461334,-500.0,0.00043835,120]
[392488494,1761557461342,-500.0,0.00043835,120]
[392488495,1761557461351,-500.0,0.00043835,120]
[392488496,1761557461360,-500.0,0.00043835,120]
[392488497,1761557461369,-500.0,0.00043835,120]
[392488498,1761557461378,-560.36545981,0.00043835,120]
[392488499,1761557461387,-500.0,0.00043835,120]
[392488500,1761557461396,-500.0,0.00043835,120]
[392488501,1761557461405,-500.0,0.00043835,2]
[392488502,1761557461414,-630.65788626,0.00043835,120]
[392488503,1761557461423,-500.0,0.00043835,2]
[392488504,1761557461432,-500.66131911,0.00043835,2]
[392488505,1761557461442,-500.0,0.00043835,120]
[392488506,1761557461452,-500.0,0.00043835,120]
[392488507,1761557461461,-500.0,0.00043835,120]
[392488508,1761557461471,-500.0,0.00043835,120]
[392488509,1761557461479,-500.0,0.00043835,120]
[392488510,1761557461488,-500.0,0.00043835,120]
[392488511,1761557461498,-500.0,0.00043835,120]
[392488512,1761557461507,-500.0,0.00043835,120]
[392488513,1761557461516,-500.0,0.00043835,120]
[392488514,1761557461527,-500.0,0.00043835,120]
[392488515,1761557461536,-582.09,0.00043835,120]
[392488516,1761557461546,-500.0,0.00043835,120]
[392488517,1761557461554,-500.0,0.00043835,120]
[392488518,1761557461564,-500.0,0.00043835,120]
[392488519,1761557461573,-500.0,0.00043835,120]
[392488520,1761557461582,-500.0,0.00043835,120]
[392488521,1761557461591,-500.0,0.00043835,120]
[392488522,1761557461600,-500.0,0.00043835,120]
[392488523,1761557461609,-500.0,0.00043835,120]
[392488524,1761557461618,-500.0,0.00043835,120]
[392488525,1761557461627,-321.46965157,0.00043835,120]
[392488526,1761557461636,-613.01,0.00043835,120]
[392488527,1761557461645,-500.0,0.00043835,120]
[392488528,1761557461653,-613.01,0.00043835,120]
[392488529,1761557461663,-500.0,0.00043836,120]
[392488530,1761557461672,-500.0,0.00043836,120]
[392488531,1761557461681,-500.0,0.00043836,120]
[392488532,1761557461691,-500.0,0.00043836,120]
[392488533,1761557461700,-500.0,0.00043836,120]
[392488534,1761557461709,-500.0,0.00043836,120]
[392488535,1761557461718,-500.0,0.00043836,120]
[392488536,1761557461727,-500.0,0.00043836,120]
[392488537,1761557461736,-500.0,0.00043836,120]
[392488538,1761557461745,-500.0,0.00043836,120]
[392488539,1761557461754,-500.0,0.00043836,120]
[392488540,1761557461764,-500.0,0.00043836,120]
[392488541,1761557461774,-500.0,0.00043836,120]
[392488542,1761557461783,-500.0,0.00043836,120]
[392488543,1761557461792,-500.0,0.00043836,120]
[392488544,1761557461801,-500.0,0.00043836,120]
[392488545,1761557461812,-500.0,0.00043836,120]
[392488546,1761557461823,-500.0,0.00043836,120]
[392488547,1761557461832,-500.0,0.00043836,120]
[392488548,1761557461840,-500.0,0.00043836,120]
[392488549,1761557461850,-500.0,0.00043836,120]
[392488550,1761557461860,-500.0,0.00043836,120]
[392488551,1761557461870,-500.0,0.00043836,120]
[392488552,1761557461879,-500.0,0.00043836,120]
[392488553,1761557461890,-500.0,0.00043836,120]
[392488554,1761557461900,-500.0,0.00043836,120]
[392488555,1761557461909,-500.0,0.00043836,120]
[392488556,1761557461919,-500.0,0.00043836,120]
[392488557,1761557461930,-500.0,0.00043836,120]
[392488558,1761557461942,-500.0,0.00043836,120]
[392488559,1761557461951,-500.0,0.00043836,120]
[392488560,1761557461961,-500.0,0.00043836,120]
[392488561,1761557461970,-500.0,0.00043836,120]
[392488562,1761557462080,-529.45044036,0.00043836,120]
[392488563,1761557462089,-300.0,0.00043836,120]
[392488564,1761557462098,-509.699299,0.00043917,120]
[392488565,1761557462108,-2000.0,0.00043917,120]
[392488566,1761557462120,-500.0,0.00043917,120]
[392488567,1761557462130,-200.0,0.00043917,120]
[392488568,1761557462139,-1425.0,0.00043931,2]
[392488569,1761557462149,-500.0,0.00043994,120]
[392488570,1761557462159,-1593.0,0.00043995,2]
[392488571,1761557462169,-606.0,0.00043995,2]
[392488572,1761557462178,-1313.0,0.00043995,2]
[392488573,1761557462197,-1270.0,0.00043995,2]
[392488574,1761557462208,-818.0,0.00043995,2]
[392488575,1761557462219,-904.0,0.00043995,2]
[392488576,1761557462229,-1186.0,0.00043995,2]
[392488577,1761557462240,-500.0,0.00043999,120]
[392488578,1761557462251,-518.3,0.00043999,120]
[392488579,1761557462261,-500.0,0.00043999,120]
[392488580,1761557462271,-500.0,0.00043999,120]
[392488581,1761557462284,-500.0,0.00043999,120]
[392488582,1761557462296,-163.99793409,0.00043999,120]
[392488583,1761557462308,-1257.9,0.00043999,30]
[392488584,1761557462321,-759.02,0.00043999,120]
[392488585,1761557462330,-500.0,0.00043999,120]
[392488586,1761557462341,-674.74,0.00043999,120]
[392488587,1761557462351,-674.74,0.00043999,120]
[392488588,1761557462361,-1818.95,0.00043999,120]
[392488589,1761557462373,-1461.44,0.00043999,120]
[392488590,1761557462382,-500.0,0.00043999,14]
[392488591,1761557462391,-877.32,0.00043999,120]
[392488592,1761557462402,-500.0,0.00043999,120]
[392488593,1761557462412,-347.87226102,0.00043999,120]
[392488594,1761557462422,-719.46,0.00043999,120]
[392488595,1761557462432,-555.03,0.00043999,120]
[392488596,1761557462443,-534.84,0.00043999,120]
[392488597,1761557462455,-500.0,0.00043999,2]
[392488598,1761557462464,-582.91,0.00043999,120]
[392488599,1761557462473,-538.59,0.00043999,120]
[392488600,1761557462483,-538.59,0.00043999,120]
[392488601,1761557462493,-500.0,0.00043999,120]
[392488602,1761557462503,-500.0,0.00043999,120]
[392488603,1761557462513,-458.04,0.00044,7]
[392488604,1761557462523,-349.02,0.00044,7]
[392488605,1761557462534,-476.38,0.00044,7]
[392488606,1761557462544,-476.38,0.00044,7]
[392488607,1761557462554,-476.38,0.00044,7]
[392488608,1761557462565,-252528.5501201,0.00044,2]
[392488609,1761557462575,-2462.88846337,0.00044,2]
[392488610,1761557462584,-151.0,0.00044,120]
[392488611,1761557462594,-160.0,0.00044,120]
[392488612,1761557462606,-1382.70748974,0.00044,2]
[392488613,1761557462616,-500.0,0.00044013,7]
[392488614,1761557462625,-500.0,0.00044013,7]
[392488615,1761557462636,-500.0,0.00044013,7]
[392488616,1761557462646,-1668.82426473,0.00044014,15]
[392488617,1761557462657,-507.0,0.00044025,120]
[392488618,1761557462667,-478.07,0.000441,90]
[392488619,1761557462677,-262.120994,0.00044109,120]
[392488620,1761557462687,-542.246774,0.00044109,120]
[392488621,1761557462696,-255.925477,0.00044109,120]
[392488622,1761557462707,-919.114307,0.00044109,120]
[392488623,1761557462716,-172.3936493,0.0004412,30]
[392488624,1761557462726,-4903.8133314,0.00044149,14]
[392488625,1761557462735,-1000.0,0.00044157,2]
[392488626,1761557462745,-150.0,0.00044178,2]
[392488627,1761557462756,-1005.82314323,0.00044258,2]
[392488628,1761557462765,-150.0,0.00044268,2]
[392488629,1761557462775,-580.40252914,0.00044268,2]
[392488630,1761557462785,-150.0,0.00044268,2]
[392488631,1761557462794,-151.26311381,0.00044268,2]
[392488632,1761557462804,-405.594,0.00044268,30]
[392488633,1761557462814,-166.66,0.0004431,2]
[392488634,1761557462823,-500.0,0.00044424,7]
[392488635,1761557462833,-500.0,0.00044424,7]
[392488636,1761557462843,-500.0,0.00044424,7]
[392488637,1761557462852,-534.84,0.00044425,120]
[392488638,1761557462861,-697.12,0.00044426,30]
[392488639,1761557462871,-476.05,0.00044426,30]
[392488640,1761557462880,-697.12,0.00044426,30]
[392488641,1761557462888,-476.05,0.00044426,30]
[392488642,1761557462898,-150.0,0.00044426,30]
[392488643,1761557462909,-697.12,0.00044426,30]
[392488644,1761557462918,-300.0,0.00044426,30]
[392488645,1761557462931,-697.12,0.00044426,30]
[392488646,1761557462940,-168.52,0.00044426,30]
[392488647,1761557462949,-414.6,0.00044426,30]
[392488648,1761557462960,-150.0,0.00044426,30]
[392488649,1761557462969,-150.0,0.00044426,30]
[392488650,1761557462979,-150.0,0.00044426,30]
[392488651,1761557462989,-476.05,0.00044426,30]
[392488652,1761557462999,-300.0,0.00044426,30]
[392488653,1761557463010,-150.0,0.00044426,30]
[392488654,1761557463023,-223.06,0.00044426,30]
[392488655,1761557463033,-349.9,0.00044426,30]
[392488656,1761557463043,-414.6,0.00044426,30]
[392488657,1761557463052,-150.0,0.00044426,30]
[392488658,1761557463063,-476.05,0.00044426,30]
[392488659,1761557463074,-150.0,0.00044426,30]
[392488660,1761557463084,-150.0,0.00044426,30]
[392488661,1761557463095,-150.0,0.00044426,30]
[392488662,1761557463104,-150.0,0.00044426,30]
[392488663,1761557463113,-150.0,0.00044426,30]
[392488664,1761557463122,-300.0,0.00044426,30]
[392488665,1761557463131,-697.12,0.00044426,30]
[392488666,1761557463140,-414.6,0.00044426,30]
[392488667,1761557463149,-829.2,0.00044426,30]
[392488668,1761557463159,-829.2,0.00044426,30]
[392488669,1761557463168,-476.05,0.00044426,30]
[392488670,1761557463178,-697.12,0.00044426,30]
[392488671,1761557463187,-476.05,0.00044426,30]
[392488672,1761557463196,-697.12,0.00044426,30]
[392488673,1761557463205,-697.12,0.00044426,30]
[392488674,1761557463215,-476.05,0.00044426,30]
[392488675,1761557463223,-476.05,0.00044426,30]
[392488676,1761557463232,-697.12,0.00044426,30]
[392488677,1761557463242,-476.05,0.00044426,30]
[392488678,1761557463252,-476.05,0.00044426,30]
[392488679,1761557463262,-476.05,0.00044426,30]
[392488680,1761557463272,-150.0,0.00044426,30]
[392488681,1761557463282,-150.0,0.00044426,30]
[392488682,1761557463291,-167.37,0.00044426,30]
[392488683,1761557463301,-414.74,0.00044426,30]
[392488684,1761557463310,-150.0,0.00044426,30]
[392488685,1761557463319,-414.74,0.00044426,30]
[392488686,1761557463329,-150.0,0.00044426,30]
[392488687,1761557463338,-915.58,0.00044426,30]
[392488688,1761557463349,-150.0,0.00044426,30]
[392488689,1761557463358,-150.0,0.00044426,30]
[392488690,1761557463367,-156.59,0.00044426,30]
[392488691,1761557463377,-828.92,0.00044426,30]
[392488692,1761557463387,-150.0,0.00044426,30]
[392488693,1761557463396,-150.0,0.00044426,30]
[392488694,1761557463405,-150.0,0.00044426,30]
[392488695,1761557463415,-150.0,0.00044426,30]
[392488696,1761557463424,-150.0,0.00044426,30]
[392488697,1761557463433,-150.0,0.00044426,30]
[392488698,1761557463442,-150.0,0.00044426,30]
[392488699,1761557463451,-414.74,0.00044426,30]
[392488700,1761557463461,-150.0,0.00044426,30]
[392488701,1761557463470,-150.0,0.00044426,30]
[392488702,1761557463479,-414.74,0.00044426,30]
[392488703,1761557463488,-414.74,0.00044426,30]
[392488704,1761557463498,-150.0,0.00044426,30]
[392488705,1761557463508,-949.8,0.00044426,30]
[392488706,1761557463517,-150.0,0.00044426,30]
[392488707,1761557463527,-828.78,0.00044426,30]
[392488708,1761557463536,-150.55,0.00044432,30]
[392488709,1761557463545,-1200.82,0.00044432,30]
[392488710,1761557463555,-5555.0,0.0004444,90]
[392488711,1761557463565,-1000.0,0.00044486,14]
[392488712,1761557463575,-674.32131182,0.000445,2]
[392488713,1761557463584,-418.31476645,0.000445,120]
[392488714,1761557463593,-27000.0,0.000445,120]
[392488715,1761557463602,-5000.0,0.000445,120]
[392488716,1761557463613,-5000.0,0.000445,120]
[392488717,1761557463623,-5000.0,0.000445,120]
[392488718,1761557463633,-10961.0,0.0004457,117]
[392488719,1761557463642,-600.0,0.00044581,16]
[392488720,1761557463651,-600.0,0.00044581,16]
[392488721,1761557463660,-600.0,0.00044581,16]
[392488722,1761557463669,-600.0,0.00044581,16]
[392488723,1761557463678,-600.0,0.00044581,16]
[392488724,1761557463688,-600.0,0.00044581,16]
[392488725,1761557463697,-600.0,0.00044581,16]
[392488726,1761557463706,-600.0,0.00044581,16]
[392488727,1761557463716,-600.0,0.00044581,32]
[392488728,1761557463727,-600.0,0.00044581,16]
[392488729,1761557463737,-600.0,0.00044581,16]
[392488730,1761557463746,-600.0,0.00044581,16]
[392488731,1761557463757,-600.0,0.00044581,16]
[392488732,1761557463767,-600.0,0.00044581,16]
[392488733,1761557463776,-600.0,0.00044581,16]
[392488734,1761557463785,-600.0,0.00044581,16]
[392488735,1761557463794,-600.0,0.00044581,16]
[392488736,1761557463804,-600.0,0.00044581,32]
[392488737,1761557463813,-1818.95,0.00044599,120]
[392488738,1761557463822,-500.0,0.00044599,14]
[392488739,1761557463832,-555.03,0.00044599,120]
[392488740,1761557463841,-582.91,0.00044599,120]
[392488741,1761557463850,-30000.0,0.000446,120]
[392488742,1761557463859,-1000.0,0.00044699,14]
[392488743,1761557463868,-878.68,0.000447,14]
[392488744,1761557463877,-2007.0381,0.00044775,3]
[392488745,1761557463887,-1294.45099257,0.00044775,4]
[392488746,1761557463898,-500.0,0.00044835,7]
[392488747,1761557463912,-500.0,0.00044835,7]
[392488748,1761557463921,-500.0,0.00044835,7]
[392488749,1761557463931,-430.15932396,0.00044855,14]
[392488750,1761557463940,-152.0,0.00044859,9]
[392488751,1761557463950,-363.38595757,0.0004489,120]
[392488752,1761557463959,-944.86533688,0.00044895,17]
[392488753,1761557463969,-153.08,0.000449,30]
[392488754,1761557463980,-1653.45,0.000449,120]
[392488755,1761557463989,-14605.20299729,0.000449,15]
[392488756,1761557463999,-1668.82426473,0.000449,15]
[392488757,1761557464010,-634.6106892,0.00044902,60]
[392488758,1761557464021,-1425.0,0.00044914,2]
[392488759,1761557464031,-500.0,0.0004496,120]
[392488760,1761557464041,-150.0,0.00044973,10]
[392488761,1761557464162,-273.78625073,0.00044989,120]
[392488762,1761557464172,-518.3,0.00044989,120]
[392488763,1761557464182,-518.3,0.00044989,120]
[392488764,1761557464191,-500.0,0.00044989,120]
[392488765,1761557464200,-500.0,0.00044989,120]
[392488766,1761557464210,-340.20818242,0.00044989,120]
[392488767,1761557464220,-500.0,0.00044989,120]
[392488768,1761557464230,-644.77963002,0.00044989,120]
[392488769,1761557464239,-1257.9,0.00044989,30]
[392488770,1761557464248,-1257.9,0.00044989,30]
[392488771,1761557464257,-759.02,0.00044989,120]
[392488772,1761557464266,-759.02,0.00044989,120]
[392488773,1761557464276,-500.0,0.00044989,120]
[392488774,1761557464284,-500.0,0.00044989,120]
[392488775,1761557464294,-674.74,0.00044989,120]
[392488776,1761557464303,-674.74,0.00044989,120]
[392488777,1761557464312,-1818.95,0.00044989,120]
[392488778,1761557464321,-1818.95,0.00044989,120]
[392488779,1761557464330,-1461.44,0.00044989,120]
[392488780,1761557464338,-1461.44,0.00044989,120]
[392488781,1761557464347,-500.0,0.00044989,14]
[392488782,1761557464356,-500.0,0.00044989,14]
[392488783,1761557464365,-877.32,0.00044989,120]
[392488784,1761557464374,-877.32,0.00044989,120]
[392488785,1761557464383,-500.0,0.00044989,120]
[392488786,1761557464392,-500.0,0.00044989,120]
[392488787,1761557464401,-719.46,0.00044989,120]
[392488788,1761557464409,-719.46,0.00044989,120]
[392488789,1761557464418,-555.03,0.00044989,120]
[392488790,1761557464428,-555.03,0.00044989,120]
[392488791,1761557464436,-534.84,0.00044989,120]
[392488792,1761557464445,-534.84,0.00044989,120]
[392488793,1761557464454,-500.0,0.00044989,2]
[392488794,1761557464463,-500.0,0.00044989,2]
[392488795,1761557464472,-582.91,0.00044989,120]
[392488796,1761557464480,-582.91,0.00044989,120]
[392488797,1761557464489,-538.59,0.00044989,120]
[392488798,1761557464498,-538.59,0.00044989,120]
[392488799,1761557464508,-500.0,0.00044989,120]
[392488800,1761557464518,-500.0,0.00044989,120]
[392488801,1761557464527,-500.0,0.00044989,120]
[392488802,1761557464535,-500.0,0.00044989,120]
[392488803,1761557464544,-241834.7753077,0.0004499,15]
[392488804,1761557464554,-227585.13362452,0.0004499,15]
[392488805,1761557464563,-510.28005116,0.00044998,120]
[392488806,1761557464573,-518.3,0.00044999,120]
[392488807,1761557464582,-500.0,0.00044999,120]
[392488808,1761557464592,-1000.0,0.00044999,120]
[392488809,1761557464602,-1257.9,0.00044999,30]
[392488810,1761557464611,-759.02,0.00044999,120]
[392488811,1761557464621,-500.0,0.00044999,120]
[392488812,1761557464631,-1818.95,0.00044999,120]
[392488813,1761557464640,-1818.95,0.00044999,120]
[392488814,1761557464650,-1818.95,0.00044999,120]
[392488815,1761557464661,-1818.95,0.00044999,120]
[392488816,1761557464671,-1818.95,0.00044999,120]
[392488817,1761557464680,-1819.14305448,0.00044999,120]
[392488818,1761557464690,-1461.44,0.00044999,120]
[392488819,1761557464699,-500.0,0.00044999,14]
[392488820,1761557464708,-572.29,0.00044999,14]
[392488821,1761557464717,-877.32,0.00044999,120]
[392488822,1761557464728,-500.0,0.00044999,120]
[392488823,1761557464737,-719.46,0.00044999,120]
[392488824,1761557464747,-555.03,0.00044999,120]
[392488825,1761557464757,-555.03,0.00044999,120]
[392488826,1761557464767,-555.03,0.00044999,120]
[392488827,1761557464777,-555.03,0.00044999,120]
[392488828,1761557464787,-555.03,0.00044999,120]
[392488829,1761557464797,-555.15,0.00044999,120]
[392488830,1761557464807,-534.84,0.00044999,120]
[392488831,1761557464816,-534.84,0.00044999,120]
[392488832,1761557464827,-534.84,0.00044999,120]
[392488833,1761557464836,-534.84,0.00044999,120]
[392488834,1761557464845,-534.84,0.00044999,120]
[392488835,1761557464855,-534.84,0.00044999,120]
[392488836,1761557464865,-534.84,0.00044999,120]
[392488837,1761557464876,-534.84,0.00044999,120]
[392488838,1761557464885,-535.00601938,0.00044999,120]
[392488839,1761557464895,-500.0,0.00044999,2]
[392488840,1761557464904,-582.91,0.00044999,120]
[392488841,1761557464914,-582.91,0.00044999,120]
[392488842,1761557464923,-582.91,0.00044999,120]
[392488843,1761557464932,-582.91,0.00044999,120]
[392488844,1761557464942,-582.91,0.00044999,120]
[392488845,1761557464952,-583.14149766,0.00044999,120]